bitfinex-derivatives/quotes_BTCF0:USTF0_20210111
["timestamp","ask_amount","ask_price","bid_price","bid_amount"]
[1610333326469,0.13632608,36662.0,36661.0,0.5]
[1610333327273,0.13632608,36662.0,36659.0,1.0]
[1610333327873,1.0,36677.0,36662.0,1.0]
[1610333328073,0.0003353,36676.0,36662.0,1.10793]
[1610333328475,4.4263,36678.0,36662.0,1.60793]
[1610333328672,4.4263,36678.0,36672.0,1.0]
[1610333328872,4.4263,36678.0,36672.0,1.59184]
[1610333329072,4.4263,36678.0,36673.0,1.0]
[1610333329474,0.13632608,36674.0,36673.0,1.0]
[1610333329675,0.13632608,36674.0,36672.0,0.09184]
[1610333329874,0.13632608,36674.0,36672.0,0.59184]
[1610333330075,0.13632608,36674.0,36673.0,1.0]
[1610333330677,0.13632608,36674.0,36673.0,1.5]
[1610333331076,0.13632608,36674.0,36673.0,2.0]
[1610333331477,0.13666142,36674.0,36673.0,2.0]
[1610333332680,0.13666142,36674.0,36673.0,1.5]
[1610333333480,0.13666142,36674.0,36673.0,2.0]
[1610333340790,0.23721142,36674.0,36673.0,2.0]
[1610333342292,0.23721142,36674.0,36673.0,1.8867]
[1610333342490,3.21936822,36674.0,36673.0,1.6236]
[1610333342691,3.25291059,36674.0,36673.0,1.6236]
[1610333344092,4.25291059,36674.0,36673.0,1.6236]
[1610333344291,1.27075379,36674.0,36673.0,1.6236]
[1610333345092,1.23721142,36674.0,36673.0,1.6236]
[1610333346095,0.2707567,36674.0,36673.0,1.6236]
[1610333347699,0.2707567,36674.0,36673.0,1.5706]
[1610333348100,0.2707567,36674.0,36673.0,1.5645]
[1610333348302,0.2707567,36674.0,36673.0,1.5203]
[1610333348503,0.2707567,36674.0,36673.0,1.4326]
[1610333348701,0.2707567,36674.0,36673.0,1.3884]
[1610333348902,0.2707567,36674.0,36673.0,1.3623]
[1610333349502,0.2707567,36674.0,36673.0,0.69334107]
[1610333349702,0.2707567,36674.0,36673.0,0.19162172]
[1610333349901,0.2707567,36674.0,36673.0,1.16252172]
[1610333350103,0.2707567,36674.0,36673.0,1.66252172]
[1610333350304,0.2707567,36674.0,36673.0,1.60492172]
[1610333350501,0.2707567,36674.0,36673.0,1.54932172]
[1610333353203,0.2707567,36674.0,36673.0,0.8804302]
[1610333353404,0.2707567,36674.0,36673.0,0.37876018]
[1610333353803,0.2707567,36674.0,36673.0,0.87876018]
[1610333354003,0.2707567,36674.0,36673.0,1.87876018]
[1610333354604,0.1067567,36674.0,36673.0,1.87876018]
[1610333355004,0.07321142,36674.0,36673.0,1.87876018]
[1610333355204,3.96911,36682.0,36673.0,1.87876018]
[1610333355404,2.99601096,36675.0,36673.0,1.87876018]
[1610333355603,2.99601096,36675.0,36674.0,1.5]
[1610333356208,2.99634633,36675.0,36674.0,2.5]
[1610333357004,2.99634633,36675.0,36674.0,2.4958]
[1610333357205,0.00033537,36675.0,36674.0,2.4958]
[1610333357404,0.00033535,36677.0,36674.0,2.4958]
[1610333357606,0.13632608,36675.0,36674.0,2.4958]
[1610333357804,0.13666143,36675.0,36674.0,2.4958]
[1610333360206,0.13666143,36675.0,36674.0,1.4958]
[1610333360805,0.13666147,36675.0,36674.0,1.4958]
[1610333361409,0.17019982,36675.0,36674.0,1.4958]
[1610333362007,0.13666147,36675.0,36674.0,1.4958]
[1610333362209,3.13512387,36675.0,36674.0,1.4958]
[1610333362614,0.13666147,36675.0,36674.0,1.4958]
[1610333363013,2.97013484,36678.0,36674.0,1.4958]
[1610333363613,0.13632608,36675.0,36674.0,1.4958]
[1610333364014,2.87147015,36678.0,36674.0,1.4958]
[1610333364613,0.00033527,36677.0,36674.0,1.4958]
[1610333365012,0.00033519,36697.0,36674.0,1.9958]
[1610333365612,0.00033519,36697.0,36691.0,0.13632608]
[1610333365813,0.00033516,36701.0,36691.0,0.21997608]
[1610333366212,0.00033516,36701.0,36696.0,1.0]
[1610333366614,0.00033516,36701.0,36696.0,0.9592]
[1610333366813,0.00033516,36701.0,36691.0,0.08365]
[1610333367013,0.00033516,36701.0,36697.0,1.0]
[1610333367212,0.03385458,36701.0,36697.0,1.0]
[1610333367413,0.03385458,36701.0,36698.0,1.0]
[1610333367612,0.13632608,36699.0,36698.0,1.5]
[1610333367814,0.13632608,36699.0,36698.0,0.5]
[1610333368213,0.17018844,36699.0,36698.0,0.4324]
[1610333368615,0.17018844,36699.0,36698.0,1.4324]
[1610333369217,0.17018844,36699.0,36698.0,1.8517]
[1610333370215,0.17018844,36699.0,36698.0,1.6096]
[1610333370416,0.17018844,36699.0,36698.0,1.5089]
[1610333370616,1.67018844,36699.0,36653.0,0.08866]
[1610333370816,0.1556,36698.0,36641.0,1.0]
[1610333371016,0.1556,36698.0,36618.0,0.2981]
[1610333371017,3.17929102,36671.0,36618.0,0.2981]
[1610333371215,0.1556,36670.0,36618.0,0.2981]
[1610333371414,0.15593547,36670.0,36619.0,0.0002227]
[1610333371615,0.00033549,36669.0,36628.0,0.13632608]
[1610333371816,0.00033549,36669.0,36654.0,1.0]
[1610333372016,0.03388641,36669.0,36654.0,1.0]
[1610333372217,0.03388641,36669.0,36654.0,0.9719]
[1610333372414,0.03388641,36669.0,36654.0,1.4195]
[1610333372615,0.03388641,36669.0,36654.0,1.3499]
[1610333372815,0.0825,36668.0,36654.0,1.3499]
[1610333373015,0.03388641,36669.0,36654.0,1.3499]
[1610333373216,0.03388641,36669.0,36629.0,0.07672]
[1610333373616,0.03388641,36669.0,36654.0,0.5]
[1610333373816,0.03388641,36669.0,36655.0,1.0]
[1610333374018,0.11538641,36669.0,36655.0,1.4184]
[1610333374419,0.03389474,36668.0,36655.0,1.0]
[1610333374818,0.03389474,36668.0,36656.0,1.0]
[1610333375218,0.03389474,36668.0,36656.0,0.8263]
[1610333375417,0.03389474,36668.0,36656.0,0.6878]
[1610333375617,0.13632608,36657.0,36656.0,0.5659]
[1610333375818,0.22249608,36657.0,36656.0,0.47]
[1610333376018,0.22249608,36657.0,36656.0,0.2788]
[1610333376219,0.22283163,36657.0,36656.0,0.2788]
[1610333376819,0.13666163,36657.0,36656.0,0.2788]
[1610333377218,0.13666163,36657.0,36656.0,0.2267]
[1610333378418,0.13666163,36657.0,36656.0,0.1865]
[1610333378618,0.13666163,36657.0,36656.0,0.1456]
[1610333379019,0.13666163,36657.0,36656.0,0.5]
[1610333379220,0.13666163,36657.0,36656.0,1.0]
[1610333379420,0.13666163,36657.0,36656.0,0.5]
[1610333379622,0.13666163,36657.0,36656.0,1.0]
[1610333379820,0.13666163,36657.0,36656.0,1.5]
[1610333380023,0.13666163,36657.0,36656.0,2.0]
[1610333380922,1.13666163,36657.0,36656.0,2.0]
[1610333381522,1.13666163,36657.0,36656.0,1.6485]
[1610333381721,1.13666163,36657.0,36656.0,1.6349]
[1610333382124,1.13666163,36657.0,36656.0,1.5811]
[1610333382323,1.13666163,36657.0,36656.0,1.553]
[1610333382522,1.17023354,36657.0,36656.0,1.553]
[1610333382923,7.67023354,36657.0,36656.0,1.4038]
[1610333383122,7.67023354,36657.0,36656.0,0.4127]
[1610333383323,8.20133354,36657.0,36607.0,1.0]
[1610333383522,7.63666163,36657.0,36607.0,1.0]
[1610333383723,7.50033555,36657.0,36652.0,0.8842]
[1610333383923,0.00033579,36656.0,36652.0,0.8546]
[1610333384124,0.03391538,36656.0,36652.0,0.8546]
[1610333384523,0.03391538,36656.0,36652.0,0.7995]
[1610333384725,0.03391538,36656.0,36652.0,0.45735]
[1610333384924,6.0,36653.0,36643.0,1.0]
[1610333385123,1.5,36652.0,36643.0,0.9722]
[1610333385324,1.5,36652.0,36643.0,0.9365]
[1610333385526,0.00033583,36651.0,36643.0,0.89]
[1610333385725,0.13632608,36644.0,36643.0,0.53287]
[1610333385925,1.73647191,36644.0,36643.0,0.47957]
[1610333386224,1.73647191,36644.0,36643.0,0.44137]
[1610333386824,1.81877191,36644.0,36643.0,0.37317]
[1610333387024,1.81877191,36644.0,36643.0,0.27797]
[1610333387225,1.81877191,36644.0,36643.0,0.23737]
[1610333387425,1.81877191,36644.0,36627.0,0.5]
[1610333387626,0.13632608,36628.0,36627.0,0.5]
[1610333387827,0.13632608,36628.0,36627.0,0.2992]
[1610333388026,0.13632608,36628.0,36627.0,0.4909]
[1610333388027,0.22551203,36628.0,36627.0,0.4909]
[1610333388428,7.50976852,36628.0,36627.0,0.4861]
[1610333388628,7.50976852,36628.0,36627.0,1.4436]
[1610333388828,4.53581203,36628.0,36627.0,1.4436]
[1610333389028,4.53581203,36628.0,36627.0,1.0]
[1610333389428,4.53581203,36628.0,36627.0,0.995]
[1610333389628,4.53581203,36628.0,36627.0,0.875]
[1610333389831,4.53581203,36628.0,36627.0,0.5]
[1610333390031,4.53581203,36628.0,36627.0,0.8208]
[1610333390232,4.53581203,36628.0,36624.0,0.913]
[1610333390430,4.53581203,36628.0,36624.0,0.6389]
[1610333390631,0.00033607,36627.0,36585.0,4.2267]
[1610333390830,2.89518363,36610.0,36585.0,4.2267]
[1610333391031,2.99747363,36610.0,36563.0,0.2819]
[1610333391632,0.13632608,36586.0,36569.0,0.13632608]
[1610333392032,2.99747363,36610.0,36569.0,0.13632608]
[1610333392233,0.10229,36610.0,36569.0,0.23277608]
[1610333393034,0.08885,36628.0,36569.0,0.23277608]
[1610333393234,2.89403889,36630.0,36569.0,0.23277608]
[1610333393434,2.89403889,36630.0,36627.0,0.5]
[1610333393634,0.13632608,36628.0,36627.0,0.5]
[1610333393834,0.23423608,36628.0,36627.0,0.5]
[1610333395740,0.23423608,36628.0,36627.0,0.4677]
[1610333395939,0.23423608,36628.0,36627.0,0.4188]
[1610333396139,4.04993608,36628.0,36627.0,0.4188]
[1610333396540,5.05027206,36628.0,36627.0,0.3888]
[1610333396741,5.05027206,36628.0,36627.0,0.2008]
[1610333397140,5.05027206,36628.0,36627.0,0.1048]
[1610333397340,5.05027206,36628.0,36625.0,0.2958]
[1610333397541,0.00033602,36627.0,36625.0,0.2928]
[1610333398145,0.0339412,36627.0,36625.0,0.1088]
[1610333398545,2.83632359,36626.0,36625.0,0.1088]
[1610333398746,3.4039,36592.0,36546.0,3.4576]
[1610333398946,3.47737,36592.0,36546.0,3.4576]
[1610333399146,3.47737,36592.0,36564.0,0.1772]
[1610333399746,0.13632608,36570.0,36569.0,0.13632608]
[1610333400149,0.13632608,36570.0,36564.0,0.1772]
[1610333401846,0.13632608,36565.0,36564.0,0.1573]
[1610333402447,0.13632608,36565.0,36564.0,1.1573]
[1610333402847,1.0,36588.0,36564.0,1.1573]
[1610333403047,1.0,36588.0,36564.0,1.22685]
[1610333403248,1.0,36588.0,36564.0,1.11855]
[1610333403448,0.00033624,36587.0,36564.0,0.97405]
[1610333403649,0.00033624,36587.0,36564.0,0.07185]
[1610333403849,0.13632608,36566.0,36565.0,1.0]
[1610333405849,0.0832,36572.0,36565.0,1.0]
[1610333406049,0.4579,36566.0,36565.0,1.0]
[1610333406249,0.4579,36566.0,36565.0,0.8119]
[1610333406450,0.541,36566.0,36565.0,0.5559]
[1610333406649,0.541,36566.0,36565.0,0.5019]
[1610333406851,0.541,36566.0,36565.0,1.2592]
[1610333407049,0.541,36566.0,36565.0,1.2198]
[1610333407050,0.54133642,36566.0,36565.0,1.2198]
[1610333407248,0.54133642,36566.0,36565.0,1.0012]
[1610333407651,0.54133642,36566.0,36565.0,0.8582]
[1610333407853,0.6776625,36566.0,36565.0,1.8582]
[1610333408051,0.6776625,36566.0,36565.0,1.18718662]
[1610333408351,0.6776625,36566.0,36565.0,1.15818662]
[1610333408551,0.6776625,36566.0,36565.0,0.94778662]
[1610333408752,0.6776625,36566.0,36565.0,0.92358662]
[1610333408951,0.00033642,36566.0,36565.0,0.92358662]
[1610333409151,0.02760642,36572.0,36565.0,0.92108662]
[1610333409552,0.02594281,36572.0,36565.0,1.92108662]
[1610333409751,0.05424281,36580.0,36571.0,0.13632608]
[1610333410151,0.0827,36599.0,36571.0,0.13632608]
[1610333410354,0.00033624,36579.0,36571.0,0.13632608]
[1610333410552,2.80134046,36620.0,36571.0,0.13632608]
[1610333410553,3.42263624,36602.0,36571.0,0.13632608]
[1610333410752,2.8088554,36630.0,36571.0,0.13632608]
[1610333410952,0.2796,36629.0,36582.0,4.0429]
[1610333411154,0.00033615,36601.0,36582.0,4.13909]
[1610333411354,0.00033613,36607.0,36582.0,4.13909]
[1610333411554,0.00033613,36600.0,36582.0,4.13909]
[1610333411754,0.21752608,36599.0,36595.0,0.13632608]
[1610333411955,0.13632608,36599.0,36595.0,0.11592608]
[1610333412154,0.13632608,36599.0,36583.0,1.0809]
[1610333412155,0.08193611,36598.0,36583.0,1.0809]
[1610333412355,0.00033611,36598.0,36583.0,0.9223]
[1610333412557,0.00033611,36598.0,36596.0,1.0]
[1610333412756,0.00033611,36598.0,36596.0,0.8397]
[1610333412959,0.00033611,36598.0,36596.0,0.0215]
[1610333413158,0.00033611,36598.0,36583.0,0.1072]
[1610333413358,0.00033611,36598.0,36583.0,0.9092]
[1610333413758,0.13632608,36584.0,36583.0,0.9092]
[1610333414158,0.13666219,36584.0,36583.0,0.9092]
[1610333414559,0.13666219,36584.0,36583.0,0.7757]
[1610333414759,0.13666219,36584.0,36583.0,1.2757]
[1610333415559,0.13666219,36584.0,36583.0,1.7757]
[1610333416360,0.13666219,36584.0,36583.0,1.2757]
[1610333416560,0.22882219,36584.0,36583.0,1.2757]
[1610333416760,0.22882219,36584.0,36583.0,1.1677]
[1610333417159,0.26244565,36584.0,36583.0,1.1677]
[1610333417563,0.26244565,36584.0,36583.0,1.1588]
[1610333417763,0.26244565,36584.0,36583.0,0.9948]
[1610333417964,0.26244565,36584.0,36583.0,0.5]
[1610333418164,0.26244565,36584.0,36583.0,0.3112]
[1610333418762,0.74564565,36584.0,36583.0,0.3112]
[1610333418964,0.74564565,36584.0,36583.0,0.5]
[1610333419165,0.74564565,36584.0,36583.0,0.468]
[1610333419363,0.74564565,36584.0,36583.0,1.4013]
[1610333419565,0.74564565,36584.0,36583.0,0.988]
[1610333419965,0.74564565,36584.0,36583.0,1.4345]
[1610333420165,0.74564565,36584.0,36583.0,1.429]
[1610333420768,0.74564565,36584.0,36583.0,1.4274]
[1610333421166,0.74564565,36584.0,36583.0,1.4157]
[1610333421366,0.74564565,36584.0,36583.0,1.3941]
[1610333421567,0.74564565,36584.0,36583.0,1.3772]
[1610333421767,0.74564565,36584.0,36583.0,1.8353]
[1610333421968,0.71202219,36584.0,36583.0,1.8353]
[1610333422368,0.71202219,36584.0,36583.0,1.8233]
[1610333422971,0.71202219,36584.0,36583.0,1.8147]
[1610333423169,0.22882219,36584.0,36583.0,1.8147]
[1610333423970,0.22882219,36584.0,36583.0,1.8116]
[1610333424571,0.22882219,36584.0,36583.0,1.8048]
[1610333424769,0.22882219,36584.0,36583.0,1.7993]
[1610333425371,0.22882219,36584.0,36583.0,1.7753]
[1610333425972,0.22882219,36584.0,36583.0,1.7207]
[1610333426170,0.22882219,36584.0,36583.0,1.6617]
[1610333426372,0.26245364,36584.0,36583.0,1.6439]
[1610333426571,0.26245364,36584.0,36583.0,1.6384]
[1610333426773,0.26245364,36584.0,36583.0,1.6022]
[1610333427171,0.26245364,36584.0,36583.0,1.5689]
[1610333427371,0.26245364,36584.0,36583.0,1.5566]
[1610333427571,0.26245364,36584.0,36583.0,1.5088]
[1610333427971,0.22882219,36584.0,36583.0,1.5088]
[1610333428171,0.06482219,36584.0,36583.0,1.5088]
[1610333428573,0.31489,36609.0,36583.0,1.5088]
[1610333428771,0.07423,36606.0,36584.0,1.5]
[1610333428973,0.03386326,36605.0,36584.0,1.5]
[1610333429179,0.03386326,36605.0,36604.0,1.0]
[1610333429575,0.00033528,36605.0,36604.0,1.0]
[1610333429774,0.03395089,36605.0,36604.0,1.0]
[1610333430173,0.13632608,36610.0,36604.0,1.0]
[1610333430374,0.00033605,36605.0,36604.0,1.0]
[1610333430573,0.00033605,36609.0,36604.0,1.0]
[1610333430977,0.00033608,36605.0,36604.0,1.0]
[1610333431177,0.00033601,36608.0,36602.0,5.0]
[1610333431374,0.00033594,36605.0,36602.0,5.0]
[1610333431574,0.29083594,36621.0,36602.0,5.0]
[1610333431777,0.29083594,36621.0,36620.0,0.13632608]
[1610333432176,0.29117183,36621.0,36620.0,0.13632608]
[1610333433175,0.09477183,36621.0,36620.0,0.13632608]
[1610333433375,3.4753,36622.0,36620.0,0.13632608]
[1610333433576,0.4771,36638.0,36620.0,0.13632608]
[1610333433778,0.00033575,36637.0,36619.0,0.07209]
[1610333433975,0.00033575,36637.0,36621.0,1.0]
[1610333434976,0.00033575,36637.0,36622.0,1.0]
[1610333435577,0.00033575,36637.0,36623.0,1.0]
[1610333435778,0.13666183,36637.0,36636.0,0.13632608]
[1610333436381,0.13632608,36637.0,36636.0,0.13632608]
[1610333436777,0.4771,36638.0,36636.0,1.13632608]
[1610333437780,0.4771,36638.0,36637.0,6.0]
[1610333438379,1.0,36681.0,36637.0,6.0]
[1610333438578,0.00033565,36662.0,36637.0,6.0]
[1610333438778,0.1031,36671.0,36637.0,6.0]
[1610333439179,0.00033561,36661.0,36637.0,6.0]
[1610333439378,0.00033561,36670.0,36638.0,1.0]
[1610333439580,0.00033561,36660.0,36638.0,1.11384]
[1610333439778,0.13632608,36660.0,36659.0,0.13632608]
[1610333440179,0.13666171,36660.0,36659.0,0.13632608]
[1610333440378,0.13666171,36660.0,36659.0,1.13632608]
[1610333440580,0.13666171,36660.0,36659.0,1.63632608]
[1610333440780,0.07576171,36671.0,36659.0,1.63632608]
[1610333441179,0.00033563,36670.0,36659.0,1.63632608]
[1610333441380,0.00033563,36670.0,36660.0,1.5]
[1610333441584,0.00033563,36670.0,36661.0,1.0]
[1610333441781,0.00033563,36670.0,36669.0,0.13632608]
[1610333441982,0.00033563,36670.0,36661.0,0.5]
[1610333442181,0.21208779,36671.0,36662.0,1.0]
[1610333442382,0.21208779,36671.0,36662.0,1.5]
[1610333442783,0.21208779,36671.0,36663.0,1.0]
[1610333442982,0.21208779,36671.0,36663.0,1.5]
[1610333443182,0.21208779,36671.0,36664.0,1.0]
[1610333443382,0.21208779,36671.0,36664.0,1.5]
[1610333443582,0.00033569,36670.0,36664.0,1.5]
[1610333443782,0.00033569,36670.0,36665.0,1.0]
[1610333443983,0.00033569,36670.0,36665.0,1.5]
[1610333444382,0.07576171,36671.0,36666.0,1.5]
[1610333444582,0.0806,36672.0,36666.0,2.0]
[1610333444783,0.0813,36683.0,36667.0,1.0]
[1610333444983,0.0813,36683.0,36667.0,2.0]
[1610333445184,0.00033569,36682.0,36667.0,1.0]
[1610333445383,0.00033569,36682.0,36649.0,0.13632608]
[1610333445384,0.11646569,36682.0,36668.0,2.0]
[1610333445584,3.0674377,36669.0,36668.0,1.2363]
[1610333445785,9.1495377,36669.0,36668.0,1.1829]
[1610333445983,9.36462955,36669.0,36668.0,1.0473]
[1610333446184,9.36462955,36669.0,36668.0,0.8796]
[1610333446385,13.18082955,36669.0,36668.0,0.13362]
[1610333446587,13.18082955,36669.0,36625.0,1.0]
[1610333446786,0.1556,36668.0,36625.0,0.9375]
[1610333446986,0.15593589,36668.0,36625.0,0.7292]
[1610333447186,4.2159,36653.0,36595.0,3.9144]
[1610333447386,4.29083,36653.0,36595.0,3.9144]
[1610333447789,0.00033599,36652.0,36595.0,3.9144]
[1610333447989,0.00033599,36652.0,36596.0,0.13632608]
[1610333448188,0.00033599,36652.0,36595.0,3.9144]
[1610333448590,0.03394614,36652.0,36626.0,1.0]
[1610333448789,0.03394614,36652.0,36626.0,0.9458]
[1610333448990,0.0816,36651.0,36639.0,0.4455]
[1610333449191,0.0816,36651.0,36626.0,1.4458]
[1610333449392,0.03395243,36650.0,36626.0,0.5]
[1610333449591,0.03395243,36650.0,36626.0,0.9894]
[1610333449791,6.0,36640.0,36626.0,0.9451]
[1610333449992,0.13632608,36627.0,36626.0,0.4724]
[1610333450191,1.63666231,36627.0,36619.0,0.9856]
[1610333450391,1.73979231,36627.0,36619.0,0.5842]
[1610333450591,1.73979231,36627.0,36607.0,1.0]
[1610333450791,0.00033632,36626.0,36607.0,0.9786]
[1610333450990,0.00033632,36626.0,36607.0,0.6189]
[1610333451191,0.00033632,36626.0,36608.0,0.8338]
[1610333451192,0.03397413,36626.0,36608.0,0.8338]
[1610333451393,0.03397413,36626.0,36608.0,0.4892]
[1610333451591,0.03397413,36626.0,36607.0,0.5]
[1610333451792,0.03397413,36626.0,36607.0,0.2829]
[1610333451993,0.13632608,36608.0,36607.0,0.2208]
[1610333452191,0.24250608,36608.0,36607.0,0.2208]
[1610333452391,0.2428425,36608.0,36607.0,0.2208]
[1610333452791,0.2428425,36608.0,36607.0,0.166]
[1610333452991,0.2428425,36608.0,36607.0,0.1357]
[1610333453191,0.3241425,36608.0,36596.0,0.5]
[1610333453592,0.00033632,36607.0,36596.0,0.5]
[1610333453791,2.91726516,36597.0,36596.0,0.5]
[1610333453994,3.05359124,36597.0,36586.0,1.0]
[1610333454193,0.13632608,36597.0,36596.0,0.5]
[1610333455193,0.13632608,36597.0,36596.0,0.4782]
[1610333455393,0.13632608,36597.0,36596.0,0.4732]
[1610333457195,0.13632608,36597.0,36596.0,0.4317]
[1610333457397,0.13632608,36597.0,36596.0,0.3765]
[1610333457596,0.13632608,36597.0,36596.0,0.3491]
[1610333457797,0.1366624,36597.0,36596.0,0.3491]
[1610333457997,6.1366624,36597.0,36596.0,0.3171]
[1610333458197,6.13632608,36597.0,36591.0,0.9861]
[1610333458397,6.24709237,36597.0,36591.0,0.8211]
[1610333458597,0.00033631,36596.0,36568.0,0.07504]
[1610333458797,0.00033631,36596.0,36562.0,3.0495]
[1610333458998,0.00033631,36596.0,36555.0,1.0]
[1610333459197,2.91122634,36589.0,36555.0,1.0]
[1610333459398,3.01744634,36589.0,36555.0,0.9598]
[1610333459799,3.01744634,36589.0,36548.0,0.40902608]
[1610333459997,0.00033638,36588.0,36569.0,0.9819]
[1610333460399,0.00033638,36588.0,36549.0,1.0]
[1610333460800,0.08093638,36588.0,36549.0,1.0]
[1610333460999,2.90647227,36581.0,36550.0,1.0]
[1610333461199,3.02200227,36581.0,36550.0,1.0]
[1610333461400,3.02200227,36581.0,36570.0,0.5]
[1610333461800,0.00033651,36580.0,36558.0,0.5]
[1610333462000,3.02200227,36581.0,36571.0,1.0]
[1610333462800,0.11553,36581.0,36572.0,1.0]
[1610333463199,0.11553,36581.0,36571.0,0.5]
[1610333463401,0.11553,36581.0,36573.0,1.0]
[1610333463801,1.0,36574.0,36572.0,0.5]
[1610333464000,0.13632608,36573.0,36572.0,0.5]
[1610333464401,0.13632608,36573.0,36566.0,1.5]
[1610333464600,0.13632608,36573.0,36557.0,0.07141]
[1610333464801,0.21171608,36573.0,36557.0,0.07141]
[1610333465004,0.21171608,36573.0,36572.0,1.5]
[1610333465402,0.21171608,36573.0,36572.0,0.5]
[1610333465602,0.21171608,36573.0,36566.0,0.5]
[1610333465801,1.21171608,36573.0,36566.0,0.5]
[1610333466002,0.13632608,36567.0,36537.0,1.0]
[1610333466202,0.13632608,36567.0,36549.0,0.02595]
[1610333466403,0.13632608,36567.0,36550.0,0.9053]
[1610333466604,0.13632608,36567.0,36550.0,1.2936]
[1610333466804,0.13632608,36567.0,36558.0,0.4768]
[1610333467003,1.5,36566.0,36558.0,0.4768]
[1610333467203,1.5811,36566.0,36551.0,0.8513]
[1610333467406,2.87789828,36563.0,36551.0,0.3234]
[1610333467606,1.5,36562.0,36551.0,0.2]
[1610333467804,0.0188,36549.0,36513.0,3.8809]
[1610333468005,0.13632608,36514.0,36472.0,0.13632608]
[1610333468407,3.082,36493.0,36438.0,3.6849]
[1610333469005,0.0111,36472.0,36438.0,3.6849]
[1610333470004,0.13632608,36468.0,36455.0,0.13632608]
[1610333471005,0.0111,36472.0,36455.0,0.13632608]
[1610333471204,0.0111,36472.0,36455.0,0.25268608]
[1610333472004,0.0111,36472.0,36463.0,0.13632608]
[1610333472205,0.0111,36472.0,36463.0,0.22590608]
[1610333473408,0.0111,36472.0,36463.0,0.08958]
[1610333474008,0.0111,36472.0,36471.0,0.13632608]
[1610333474208,0.0111,36472.0,36471.0,0.23203608]
[1610333474608,0.0111,36472.0,36471.0,1.23203608]
[1610333474808,0.0111,36472.0,36471.0,1.73203608]
[1610333475209,0.0111,36472.0,36471.0,2.23203608]
[1610333475809,0.0111,36472.0,36471.0,2.09571]
[1610333478112,0.14742608,36472.0,36471.0,2.09571]
[1610333478312,0.14742608,36472.0,36471.0,1.93381]
[1610333478512,0.0111,36472.0,36471.0,2.04004]
[1610333480112,0.14742608,36472.0,36471.0,2.04004]
[1610333481315,0.14742608,36472.0,36471.0,1.87744]
[1610333481715,0.14742608,36472.0,36471.0,1.26651364]
[1610333481914,0.14742608,36472.0,36471.0,1.24161364]
[1610333482116,0.14742608,36472.0,36471.0,1.22471364]
[1610333482315,0.14742608,36472.0,36471.0,0.57181364]
[1610333482516,0.22962608,36472.0,36471.0,0.53061364]
[1610333482716,0.14742608,36472.0,36471.0,0.52061364]
[1610333482915,0.14742608,36472.0,36471.0,1.52061364]
[1610333483918,0.0111,36472.0,36471.0,1.52061364]
[1610333486118,0.0111,36472.0,36471.0,1.65693972]
[1610333487318,4.2209,36512.0,36471.0,1.65693972]
[1610333487719,4.2209,36512.0,36472.0,1.0]
[1610333488120,4.2209,36512.0,36511.0,0.13632608]
[1610333488321,1.0,36611.0,36511.0,0.23169608]
[1610333488520,2.80379565,36582.0,36511.0,1.23169608]
[1610333488920,0.0827,36568.0,36511.0,1.73169608]
[1610333489120,0.00033689,36541.0,36512.0,1.0]
[1610333489522,0.11049,36561.0,36512.0,1.0]
[1610333489720,0.083,36555.0,36512.0,1.5]
[1610333489921,0.083,36555.0,36513.0,1.0]
[1610333490121,0.13632608,36553.0,36541.0,0.13632608]
[1610333491126,0.13632608,36553.0,36541.0,1.13632608]
[1610333491526,0.13632608,36553.0,36541.0,1.63632608]
[1610333491928,0.13632608,36553.0,36541.0,1.5]
[1610333492127,0.14632608,36542.0,36541.0,1.5]
[1610333492729,0.14632608,36542.0,36541.0,2.0]
[1610333493328,0.14666286,36542.0,36541.0,2.0]
[1610333494128,0.14666286,36542.0,36541.0,2.13632608]
[1610333494328,0.01033678,36542.0,36541.0,2.13632608]
[1610333494529,0.01,36542.0,36541.0,2.13632608]
[1610333495729,0.01,36542.0,36541.0,2.0]
[1610333496130,0.14666284,36542.0,36541.0,2.0]
[1610333496728,0.01033676,36542.0,36541.0,2.0]
[1610333497928,4.2664,36567.0,36541.0,2.0]
[1610333498129,4.2664,36567.0,36566.0,0.13632608]
[1610333498329,4.2664,36567.0,36566.0,0.24707608]
[1610333498528,4.26673657,36567.0,36566.0,0.24707608]
[1610333499128,4.26673657,36567.0,36566.0,0.74707608]
[1610333499328,4.26673657,36567.0,36566.0,1.74707608]
[1610333499531,4.26673657,36567.0,36566.0,1.61075]
[1610333499929,4.26673657,36567.0,36566.0,2.11075]
[1610333500129,4.40306265,36567.0,36566.0,2.11075]
[1610333500529,4.26673657,36567.0,36566.0,2.11075]
[1610333502131,4.40306265,36567.0,36566.0,2.11075]
[1610333502332,4.40306265,36567.0,36566.0,3.11075]
[1610333502532,0.00033657,36567.0,36566.0,3.11075]
[1610333502734,1.0,36590.0,36566.0,3.11075]
[1610333503134,0.00033651,36589.0,36567.0,1.5]
[1610333503534,0.00033651,36589.0,36567.0,0.5]
[1610333503735,0.00033651,36589.0,36568.0,1.0]
[1610333503937,0.00033651,36589.0,36568.0,1.5]
[1610333504135,0.00033651,36589.0,36588.0,0.13632608]
[1610333504336,0.00033651,36589.0,36588.0,1.24025608]
[1610333504538,0.00033637,36599.0,36588.0,1.24025608]
[1610333504736,0.00033637,36599.0,36588.0,1.74025608]
[1610333504938,0.13632608,36600.0,36588.0,1.74025608]
[1610333505137,0.00033634,36598.0,36589.0,0.5]
[1610333505338,1.0,36618.0,36589.0,0.5]
[1610333505536,1.0,36618.0,36589.0,1.5]
[1610333505736,0.817,36618.0,36589.0,0.5]
[1610333505937,0.00033631,36617.0,36589.0,0.5]
[1610333506138,0.00033631,36617.0,36616.0,0.13632608]
[1610333506337,0.00033631,36617.0,36616.0,0.23922608]
[1610333506736,0.00033626,36623.0,36616.0,1.23922608]
[1610333506936,0.00033626,36617.0,36616.0,1.23922608]
[1610333507136,0.00033626,36617.0,36616.0,1.73922608]
[1610333507337,0.00033626,36622.0,36617.0,1.5]
[1610333507536,0.00033626,36623.0,36617.0,1.5]